bitfinex-derivatives/quotes_SOLF0:USTF0_20260104
["timestamp","ask_amount","ask_price","bid_price","bid_amount"]
[1767491461708,0.05179007,133.71,133.68,0.04820319]
[1767491461908,5.83339289,133.7,133.68,0.04820319]
[1767491462108,0.05179007,133.71,133.68,0.04820319]
[1767491462308,5.83335408,133.7,133.68,0.04820319]
[1767491462607,0.05179007,133.71,133.68,0.04820319]
[1767491462810,5.83477121,133.7,133.68,0.04820319]
[1767491463004,0.05179007,133.71,133.68,0.04820319]
[1767491463205,5.88247065,133.7,133.68,0.04820319]
[1767491463406,0.05179007,133.71,133.68,0.04820319]
[1767491463711,5.88245239,133.7,133.68,0.04820319]
[1767491464007,3.04852865,133.71,133.68,0.04820319]
[1767491464210,5.88280577,133.7,133.68,0.04820319]
[1767491464409,3.04852865,133.71,133.68,0.04820319]
[1767491464610,5.88279936,133.7,133.68,0.04820319]
[1767491464911,3.04852865,133.71,133.68,0.04820319]
[1767491465108,5.88279356,133.7,133.68,0.04820319]
[1767491465305,3.04852865,133.71,133.68,0.04820319]
[1767491465504,5.88337234,133.7,133.68,0.04820319]
[1767491465704,3.04852865,133.71,133.68,0.04820319]
[1767491465906,5.88338607,133.7,133.68,0.04820319]
[1767491466105,3.04852865,133.71,133.68,0.04820319]
[1767491466306,5.88339639,133.7,133.68,0.04820319]
[1767491466607,3.04852865,133.71,133.68,0.04820319]
[1767491466806,5.88300986,133.7,133.68,0.04820319]
[1767491467006,3.04852865,133.71,133.68,0.04820319]
[1767491467309,5.88248799,133.7,133.68,0.04820319]
[1767491467514,5.8818592,133.69,133.68,0.04820319]
[1767491468006,5.8818592,133.69,133.64,2.95416558]
[1767491468209,5.8818592,133.68,133.64,2.95416558]
[1767491468410,2.95873545,133.7,133.64,2.95416558]
[1767491468609,2.94951277,133.68,133.62,2.95416558]
[1767491468814,5.88015739,133.67,133.62,2.95416558]
[1767491469008,5.9278375,133.66,133.63,0.05239672]
[1767491469214,5.88015739,133.65,133.63,0.05239672]
[1767491469412,0.04768011,133.66,133.63,0.05239672]
[1767491472516,2.96139661,133.66,133.63,0.05239672]
[1767491473511,0.04768011,133.66,133.63,3.0065623]
[1767491474516,2.89640938,133.71,133.63,3.0065623]
[1767491474717,5.86350134,133.7,133.64,2.95416558]
[1767491474918,2.89640938,133.71,133.64,2.95416558]
[1767491475118,5.86429291,133.7,133.64,2.95416558]
[1767491475313,2.89640938,133.71,133.64,2.95416558]
[1767491475514,5.86472223,133.7,133.64,2.95416558]
[1767491475719,0.05137685,133.69,133.66,0.04892631]
[1767491477016,0.05137685,133.69,133.66,3.00309189]
[1767491478817,9.66049113,133.73,133.66,3.00309189]
[1767491479019,5.86455961,133.72,133.66,3.00309189]
[1767491479215,9.66049113,133.73,133.66,3.00309189]
[1767491479216,5.86455961,133.71,133.66,3.00309189]
[1767491479413,9.66049113,133.73,133.66,3.00309189]
[1767491479613,5.86476811,133.72,133.66,3.00309189]
[1767491479922,0.05596355,133.7,133.66,3.00309189]
[1767491494440,2.83567104,133.7,133.66,0.04892631]
[1767491494636,2.73078118,133.68,133.62,2.93692037]
[1767491494939,8.59629945,133.67,133.62,2.93692037]
[1767491495139,2.73078118,133.67,133.62,2.93692037]
[1767491495735,0.0562671,133.66,133.63,2.98502072]
[1767491496735,0.0562671,133.66,133.63,0.04810035]
[1767491496940,5.93052348,133.65,133.6,2.93692037]
[1767491497140,2.77431499,133.66,133.6,2.93692037]
[1767491497336,5.93012194,133.65,133.6,2.93692037]
[1767491497539,0.0562671,133.66,133.6,2.93692037]
[1767491497945,0.0562671,133.66,133.62,2.98906008]
[1767491520157,2.4431145,133.72,133.62,2.98906008]
[1767491520358,2.4431145,133.74,133.64,2.84838424]
[1767491520560,5.87937264,133.73,133.64,2.84838424]
[1767491520760,2.4431145,133.74,133.64,2.84838424]
[1767491520961,5.87941759,133.73,133.64,2.84838424]
[1767491521162,6.7332,133.73,133.68,2.84838424]
[1767491521758,1.90656505,133.75,133.68,2.84838424]
[1767491521759,6.7322,133.75,133.68,2.84838424]
[1767491521959,5.85903666,133.74,133.68,2.84838424]
[1767491522159,6.7322,133.75,133.68,2.84838424]
[1767491522362,0.05620846,133.73,133.7,2.90260587]
[1767491525360,92.0571747,133.76,133.7,2.90260587]
[1767491525766,88.42,133.76,133.7,2.90260587]
[1767491525966,1.2187708,133.77,133.71,2.84838424]
[1767491526268,2.42691102,133.78,133.71,2.84838424]
[1767491526570,0.05092035,133.76,133.73,0.05066526]
[1767491526958,0.05092035,133.76,133.73,2.8990495]
[1767491527266,0.05092035,133.76,133.73,0.05066526]
[1767491529761,3.65153195,133.76,133.71,2.84838424]
[1767491530859,3.65153195,133.76,133.72,0.05337139]
[1767491533068,2.43276115,133.76,133.72,0.05337139]
[1767491536375,3.53678963,133.75,133.69,2.84838424]
[1767491537476,3.53678963,133.75,133.71,0.05493103]
[1767491544274,2.31801883,133.75,133.71,0.05493103]
[1767491557290,0.05092035,133.76,133.71,2.78912338]
[1767491557687,2.15206221,133.76,133.71,2.78912338]
[1767491562492,5.85487235,133.75,133.71,2.78912338]
[1767491562788,2.15206221,133.76,133.71,2.78912338]
[1767491562989,5.85451201,133.75,133.71,2.78912338]
[1767491563178,2.15206221,133.76,133.71,2.78912338]
[1767491563380,5.85474575,133.75,133.71,2.78912338]
[1767491563578,2.15206221,133.76,133.71,2.78912338]
[1767491563781,5.86006851,133.75,133.71,2.78912338]
[1767491563981,2.15206221,133.76,133.71,2.78912338]
[1767491564278,5.86006851,133.75,133.71,2.78912338]
[1767491564484,5.86006851,133.74,133.71,2.78912338]
[1767491564686,2.15206221,133.76,133.71,2.78912338]
[1767491564884,5.86812111,133.75,133.71,2.78912338]
[1767491565085,5.86812111,133.74,133.71,2.78912338]
[1767491565286,2.15206221,133.76,133.71,2.78912338]
[1767491565486,5.84621526,133.75,133.71,2.78912338]
[1767491565686,5.84621526,133.74,133.71,2.78912338]
[1767491565882,2.15206221,133.76,133.71,2.78912338]
[1767491566089,5.84605392,133.75,133.71,2.78912338]
[1767491566291,5.84605392,133.74,133.71,2.78912338]
[1767491566488,2.15206221,133.76,133.71,2.78912338]
[1767491566687,5.84816001,133.75,133.71,2.78912338]
[1767491566884,5.84816001,133.74,133.71,2.78912338]
[1767491567085,2.15206221,133.76,133.71,2.78912338]
[1767491567286,5.8482585,133.75,133.71,2.78912338]
[1767491567483,5.8482585,133.74,133.71,2.78912338]
[1767491567683,2.15206221,133.76,133.71,2.78912338]
[1767491567886,5.84877698,133.75,133.71,2.78912338]
[1767491568087,5.84877698,133.74,133.71,2.78912338]
[1767491568288,2.15206221,133.76,133.71,2.78912338]
[1767491568497,5.8492939,133.75,133.71,2.78912338]
[1767491568795,5.8492939,133.74,133.71,2.78912338]
[1767491568999,2.15206221,133.76,133.71,2.78912338]
[1767491569300,5.84962519,133.75,133.71,2.78912338]
[1767491569496,5.84962519,133.74,133.71,2.78912338]
[1767491569696,2.15206221,133.76,133.71,2.78912338]
[1767491569900,5.84962172,133.75,133.71,2.78912338]
[1767491570089,5.84962172,133.74,133.71,2.78912338]
[1767491570284,2.15206221,133.76,133.71,2.78912338]
[1767491570491,6.7303,133.79,133.73,2.73419235]
[1767491570693,9.37533166,133.79,133.73,2.73419235]
[1767491571800,0.04855934,133.77,133.75,0.05652293]
[1767491572795,2.64503166,133.81,133.75,2.79071528]
[1767491573899,0.05404885,133.79,133.75,2.79071528]
[1767491576885,2.64503166,133.83,133.77,1.2187708]
[1767491577089,2.64503166,133.83,133.78,2.73419235]
[1767491577298,88.38,133.84,133.78,2.73419235]
[1767491577993,91.02503166,133.84,133.78,2.73419235]
[1767491578295,0.05654522,133.82,133.8,0.0575742]
[1767491582487,2.59939074,133.82,133.75,9.37998699]
[1767491582692,2.59939074,133.82,133.73,2.64818699]
[1767491582693,1.2187708,133.79,133.73,2.64818699]
[1767491583709,1.2187708,133.79,133.75,0.05056156]
[1767491583710,0.05366335,133.77,133.75,0.05056156]
[1767491586607,2.54284552,133.81,133.75,2.69874855]
[1767491586905,2.54284552,133.81,133.75,2.64818699]
[1767491587698,0.04885683,133.79,133.77,0.05083675]
[1767491590803,2.59170235,133.79,133.77,0.05083675]
[1767491590999,2.59170235,133.79,133.73,9.38088699]
[1767491591305,2.59170235,133.79,133.73,2.64818699]
[1767491592310,2.59170235,133.79,133.75,0.0501899]
[1767491603316,2.59170235,133.79,133.72,6.7332]
[1767491603516,2.59170235,133.79,133.71,2.64818699]
[1767491604421,2.59170235,133.79,133.74,0.04971669]
[1767491615236,8.37229708,133.78,133.74,0.04971669]
[1767491615434,2.5727271,133.78,133.74,0.04971669]
[1767491616436,2.5727271,133.78,133.71,2.72630222]
[1767491617029,2.5727271,133.76,133.69,2.72630222]
[1767491617336,2.5727271,133.76,133.71,0.05424642]
[1767491617542,0.0515319,133.74,133.71,0.05424642]
[1767491628340,2.624259,133.74,133.67,2.72630222]
[1767491628846,2.624259,133.74,133.69,2.72630222]
[1767491629545,2.624259,133.74,133.7,0.05729063]
[1767491640949,0.0515319,133.74,133.7,2.84318249]
[1767491641147,2.57186981,133.76,133.7,2.84318249]
[1767491641546,2.57186981,133.76,133.71,2.78589186]
[1767491642150,0.04724054,133.75,133.71,2.78589186]
[1767491646661,0.04724054,133.75,133.72,1.21819554]
[1767491648355,0.04724054,133.75,133.71,4.0040874]
[1767491649459,2.61911035,133.75,133.7,6.79149063]
[1767491649757,2.61911035,133.75,133.7,0.05729063]
[1767491651765,2.61911035,133.75,133.7,6.79159063]
[1767491654063,2.61911035,133.75,133.71,1.21819554]
[1767491654265,0.04724054,133.75,133.71,4.0040874]
[1767491661274,0.04724054,133.75,133.71,10.7378874]
[1767491663481,0.04724054,133.75,133.72,2.78589186]
[1767491665574,2.57186981,133.79,133.72,2.78589186]
[1767491665783,5.88517877,133.78,133.74,2.78589186]
[1767491665982,5.88517877,133.77,133.74,2.78589186]
[1767491666281,2.57186981,133.79,133.74,2.78589186]
[1767491666581,5.80405218,133.78,133.74,2.78589186]
[1767491666785,0.04776105,133.78,133.75,0.04793008]
[1767491667976,2.57186981,133.81,133.75,4.05201748]
[1767491668174,5.80265658,133.8,133.75,4.05201748]
[1767491668376,5.80265658,133.79,133.75,4.05201748]
[1767491668583,5.658e-05,133.78,133.75,4.05201748]
[1767491668781,2.57186981,133.81,133.75,4.05201748]
[1767491669282,0.05394121,133.79,133.75,4.05201748]
[1767491669882,0.05394121,133.79,133.75,10.78361748]
[1767491672485,0.05394121,133.79,133.76,2.75294125]
[1767491677483,91.02885908,133.84,133.78,2.75294125]
[1767491677691,2.66885908,133.83,133.76,91.09294125]
[1767491677992,2.66885908,133.82,133.76,91.09294125]
[1767491678477,0.04837755,133.8,133.78,0.05256654]
[1767491690498,2.66885908,133.86,133.79,3.97113679]
[1767491690801,2.66885908,133.85,133.79,92.29113679]
[1767491691389,2.66885908,133.85,133.8,2.75294125]
[1767491691595,0.05600611,133.84,133.81,0.05196029]
[1767491693111,9.39405908,133.89,133.81,2.80490154]
[1767491693314,2.66885908,133.88,133.83,2.75294125]
[1767491694100,2.66885908,133.88,133.82,88.32]
[1767491694306,0.05443429,133.86,133.84,0.05173566]
[1767491696014,2.66885908,133.88,133.84,0.05173566]
[1767491701712,3.96420573,133.9,133.84,0.05173566]
[1767491701919,2.74601019,133.9,133.84,2.77948869]
[1767491703608,2.74601019,133.9,133.85,3.94594857]
[1767491703920,31.68425891,133.92,133.86,2.72775303]
[1767491704218,16.50651319,133.92,133.89,1.21819554]
[1767491704811,16.50651319,133.92,133.88,3.99684506]
[1767491705119,16.50651319,133.92,133.88,2.77864952]
[1767491706022,16.50651319,133.92,133.88,3.99684506]
[1767491706520,16.50651319,133.92,133.88,2.77864952]
[1767491706714,16.50651319,133.92,133.88,0.05089649]
[1767491709310,19.25252338,133.92,133.88,0.05089649]
[1767491710916,2.74601019,133.91,133.85,1.89866061]
[1767491711121,2.74601019,133.91,133.84,9.45495303]
[1767491712020,0.05729584,133.89,133.86,0.05390618]
[1767491712221,2.80330603,133.89,133.86,0.05390618]
[1767491713720,0.05729584,133.89,133.86,0.05390618]
[1767491716718,16.50651319,133.92,133.86,0.05390618]
[1767491717323,16.50651319,133.92,133.86,2.78165921]
[1767491718523,104.5015,134.03,133.86,2.78165921]
[1767491718524,126.9736,134.02,133.89,4.62641364]
[1767491718824,2.74601019,133.99,133.94,0.04750512]
[1767491719027,2.74601019,133.97,133.94,0.04750512]
[1767491720329,88.28,134.01,133.94,0.04750512]
[1767491720529,5.72055973,134.0,133.94,0.04750512]
[1767491720731,89.78,134.01,133.94,0.04750512]
[1767491721029,5.72059204,134.0,133.94,0.04750512]
[1767491721231,89.78,134.01,133.94,0.04750512]
[1767491721432,5.7194707,134.0,133.94,0.04750512]
[1767491721730,89.78,134.01,133.94,0.04750512]
[1767491721923,6.7201,133.99,133.87,197.50911364]
[1767491722122,5.71869976,133.98,133.88,2.72775303]
[1767491722323,2.74601019,133.98,133.9,2.72775303]
[1767491722524,2.74601019,133.98,133.89,1.89866061]
[1767491722722,2.74601019,133.98,133.89,4.62641364]
[1767491722927,0.05458936,133.95,133.92,0.04927048]
[1767491734537,2.73842369,133.97,133.92,0.04927048]
[1767491736527,2.83745157,133.99,133.92,2.84173685]
[1767491736733,2.83745157,134.04,133.95,1.89866061]
[1767491737038,2.83745157,134.02,133.98,0.05437639]
[1767491740333,2.83745157,134.02,133.94,4.69112698]
[1767491740639,2.83745157,134.02,133.94,2.79246637]
[1767491741228,2.83745157,134.02,133.96,2.79246637]
[1767491741434,0.04754854,134.0,133.98,0.05639272]
[1767491741628,0.05437639,134.0,133.98,0.05639272]
[1767491742436,2.83745157,134.03,133.98,0.05639272]
[1767491760542,3.01142074,134.05,133.98,2.95202115]
[1767491761856,3.01142074,134.05,133.98,0.05639272]
[1767491763059,3.01142074,134.03,133.98,0.05639272]
[1767491764869,3.01142074,134.02,133.94,2.89562843]
[1767491765068,3.01142074,134.0,133.92,2.89562843]
[1767491766067,0.05325204,133.97,133.95,0.05655538]
[1767491768864,0.05325204,133.97,133.95,2.95218381]
[1767491769068,3.01142074,134.01,133.95,0.05655538]
[1767491771368,1.21429639,134.0,133.95,0.05655538]
[1767491771672,3.01142074,133.99,133.95,0.05655538]
[1767491774475,3.01142074,133.97,133.91,2.89562843]
[1767491775572,0.04791056,133.95,133.93,0.05576423]
[1767491777970,3.01142074,134.0,133.93,2.95139266]
[1767491778167,8.80211549,133.99,133.93,2.95139266]
[1767491778372,3.01142074,133.97,133.93,0.05576423]
[1767491782173,3.01142074,133.96,133.93,0.05576423]
[1767491786278,3.01142074,133.98,133.93,0.05576423]
[1767491788184,4.22571713,134.0,133.93,2.95139266]
[1767491788481,8.79752975,133.99,133.93,2.95139266]
[1767491788680,3.01142074,133.99,133.93,2.95139266]
[1767491789381,3.01142074,133.99,133.93,0.05576423]
[1767491790283,5.7790613,133.98,133.93,0.05576423]
[1767491790477,3.17038513,133.97,133.93,0.05576423]
[1767491791679,3.17038513,133.99,133.93,3.17986877]
[1767491791983,8.94950456,133.98,133.93,3.17986877]
[1767491792283,3.17038513,133.98,133.93,3.17986877]
[1767491792984,3.17038513,133.98,133.93,0.05576423]
[1767491803587,3.23228529,134.01,133.94,3.10373385]
[1767491803788,5.7886105,134.0,133.94,3.10373385]
[1767491804085,3.23228529,134.01,133.96,0.04892794]
[1767491804278,9.02119685,134.0,133.96,0.04892794]
[1767491804478,3.23228529,134.0,133.96,0.04892794]
[1767491805385,6.7185,134.02,133.96,0.04892794]
[1767491805386,9.95078529,134.02,133.96,0.04892794]
[1767491805589,9.02213307,134.01,133.96,0.04892794]
[1767491805885,5.78984778,134.0,133.96,0.04892794]
[1767491806086,3.23228529,134.01,133.96,0.04892794]
[1767491806391,5.79022964,134.0,133.96,0.04892794]
[1767491806684,3.23228529,134.01,133.96,0.04892794]
[1767491806885,5.79217607,134.0,133.96,0.04892794]
[1767491807085,3.23228529,134.01,133.96,0.04892794]
[1767491807287,5.79217606,134.0,133.96,0.04892794]
[1767491807488,3.23228529,134.01,133.96,0.04892794]
[1767491807690,5.79434668,134.0,133.96,0.04892794]
[1767491807986,3.23228529,134.01,133.96,0.04892794]
[1767491808186,5.79438225,134.0,133.96,0.04892794]
[1767491808377,3.23228529,134.01,133.96,0.04892794]
[1767491808581,5.7954833,134.0,133.96,0.04892794]
[1767491808886,3.23228529,134.01,133.96,0.04892794]
[1767491809187,5.7954343,134.0,133.96,0.04892794]
[1767491809388,3.23228529,134.01,133.96,0.04892794]
[1767491809684,5.79701769,134.0,133.96,0.04892794]
[1767491809889,3.23228529,134.01,133.96,0.04892794]
[1767491810091,5.79701769,134.0,133.96,0.04892794]
[1767491810388,3.23228529,134.01,133.96,0.04892794]
[1767491810585,5.79343736,134.0,133.96,0.04892794]
[1767491810786,3.23228529,134.01,133.96,0.04892794]
[1767491810987,5.79342385,134.0,133.96,0.04892794]
[1767491811186,3.23228529,134.01,133.96,0.04892794]
[1767491811387,5.79303467,134.0,133.96,0.04892794]
[1767491811589,3.23228529,134.01,133.96,0.04892794]
[1767491811790,9.02531996,134.0,133.96,0.04892794]
[1767491812090,3.23228529,134.0,133.96,0.04892794]
[1767491812490,3.23228529,133.98,133.91,6.7237]
[1767491812684,3.23228529,133.98,133.91,3.10373385]
[1767491812994,3.23228529,133.96,133.88,3.10373385]
[1767491813190,3.23228529,133.94,133.88,3.10373385]
[1767491813592,0.0473921,133.92,133.9,0.04779418]
[1767491818389,417.9551,134.05,133.9,3.15152803]
[1767491818390,1.21429639,133.99,133.9,3.15152803]
[1767491818594,5.78864261,133.98,133.9,3.10373385]
[1767491818787,5.78864261,133.97,133.9,3.10373385]
[1767491818986,5.78864261,133.96,133.9,3.10373385]
[1767491819184,1.21429639,133.99,133.92,0.05533158]
[1767491819399,5.78952947,133.98,133.92,0.05533158]
[1767491819695,5.78952947,133.97,133.92,0.05533158]
[1767491819895,5.78952947,133.96,133.92,0.05533158]
[1767491820084,1.21429639,133.99,133.92,0.05533158]
[1767491820283,0.32824734,133.97,133.92,0.05533158]
[1767491820702,5.78785429,133.96,133.92,0.05533158]
[1767491820901,1.55356903,133.99,133.92,3.1481478]
[1767491821101,5.78854553,133.98,133.92,3.1481478]
[1767491821303,0.33927264,133.99,133.92,3.1481478]
[1767491821501,5.7894285,133.98,133.93,1.21429639]
[1767491821804,7.0688619,134.02,133.94,3.09281622]
[1767491821995,6.14330577,134.01,133.97,0.05621443]
[1767491822190,5.79314387,134.0,133.97,0.05621443]
[1767491822798,6.1540533,134.0,133.97,0.05621443]
[1767491823003,0.36090943,134.0,133.94,3.09281622]
[1767491824104,0.04729391,133.98,133.96,0.05113744]
[1767491825905,0.43973714,133.98,133.89,3.09281622]
[1767491826103,6.18398543,133.97,133.9,1.21429639]
[1767491826304,0.39244323,133.97,133.9,4.30711261]
[1767491827104,0.04984743,133.95,133.92,0.05412807]
[1767491828124,0.46272428,133.95,133.92,0.05412807]
[1767491828521,0.46272428,133.95,133.88,4.30711261]
[1767491829524,0.46272428,133.95,133.9,0.05313978]
[1767491833721,0.04984743,133.95,133.9,3.145956]
[1767491839233,0.46443009,133.98,133.91,3.09281622]
[1767491840133,0.46443009,133.98,133.93,0.05662697]
[1767491840339,0.04868516,133.96,133.93,0.05662697]
[1767491840527,0.53230031,134.0,133.93,3.14944319]
[1767491840731,5.86491811,133.99,133.93,3.09281622]
[1767491840936,5.86491811,133.98,133.93,3.09281622]
[1767491841238,0.53230031,134.0,133.94,3.09281622]
[1767491841434,5.86481326,133.99,133.94,3.09281622]
[1767491841635,0.05676626,133.98,133.95,0.04749667]
[1767491842336,0.53230031,134.0,133.95,3.14031289]
[1767491843526,0.55853776,134.03,133.95,3.14031289]
[1767491843728,6.42214652,134.02,133.98,0.04914485]
[1767491844034,5.86360876,134.01,133.98,0.04914485]
[1767491844542,0.56707713,134.05,133.98,3.14196107]
[1767491855546,0.66724262,134.04,133.98,3.14196107]
[1767491855742,0.66724262,134.04,133.98,0.04914485]
[1767491856542,0.67453851,134.02,133.98,0.04914485]
[1767491863254,7.39323851,134.02,133.98,0.04914485]
[1767491863555,0.71512702,134.01,133.96,3.40133249]
[1767491864458,0.71512702,134.01,133.97,0.05507895]
[1767491865360,0.05727437,134.0,133.97,0.05507895]
[1767491883059,0.05727437,134.0,133.97,3.53419218]
[1767491899487,88.2,134.04,133.97,3.53419218]
[1767491899488,95.82986541,134.04,133.97,3.53419218]
[1767491899676,5.86934458,134.03,133.97,3.53419218]
[1767491899879,5.86934458,134.02,133.97,3.53419218]
[1767491900086,5.86934458,134.01,133.97,3.53419218]
[1767491900281,95.82986541,134.04,133.97,3.53419218]
[1767491900482,5.86889493,134.03,133.97,3.53419218]
[1767491900683,5.86889493,134.02,133.97,3.53419218]
[1767491900884,95.82986541,134.04,133.97,3.53419218]
[1767491900885,5.86889493,134.01,133.97,3.53419218]
[1767491901083,95.82986541,134.04,133.97,3.53419218]
[1767491901283,5.86567351,134.03,133.97,3.53419218]
[1767491901487,5.86567351,134.02,133.97,3.53419218]
[1767491901683,97.04370698,134.04,133.97,3.53419218]
[1767491901883,5.86447344,134.03,133.97,3.53419218]
[1767491902090,5.86447344,134.02,133.97,3.53419218]
[1767491902291,97.04370698,134.04,133.97,3.53419218]
[1767491902491,97.04370698,134.04,133.98,3.47911323]
[1767491902492,5.86532022,134.03,133.98,3.47911323]
[1767491902792,5.86532022,134.02,133.98,3.47911323]
[1767491903092,95.82986541,134.04,133.98,3.47911323]
[1767491903293,5.8794237,134.03,133.98,3.47911323]
[1767491903493,5.8794237,134.02,133.98,3.47911323]
[1767491903693,7.62986541,134.04,133.98,3.47911323]
[1767491903891,5.8794237,134.03,133.98,3.47911323]
[1767491904087,5.8794237,134.02,133.98,3.47911323]
[1767491904289,7.62986541,134.04,133.98,3.47911323]
[1767491904481,2.22383098,134.03,134.0,3.47911323]
[1767491904792,3.3914032,134.05,134.0,3.5311027]
[1767491905286,6.7166,134.06,134.0,3.5311027]
[1767491907082,4.60524477,134.07,134.0,3.5311027]
[1767491916612,5.84959814,134.06,134.0,3.5311027]
[1767491916808,5.84959814,134.05,134.0,3.5311027]
[1767491917009,4.60524477,134.07,134.0,3.5311027]
[1767491917211,5.84990643,134.06,134.0,3.5311027]
[1767491917507,5.84990643,134.05,134.0,3.5311027]
[1767491917809,3.60210881,134.02,133.97,3.36496682]
[1767491918113,7.06158771,134.01,133.95,3.36496682]
[1767491918311,1.21384157,134.01,133.95,3.36496682]
[1767491918813,0.05249304,133.99,133.97,0.05469912]
[1767491921512,0.05249304,133.99,133.95,3.36496682]
[1767491922623,0.05249304,133.99,133.96,0.05764163]
[1767491922813,0.05249304,133.99,133.96,3.42260845]
[1767491923417,1.21384157,134.01,133.96,3.42260845]
[1767491924611,0.05240803,134.0,133.96,3.42260845]
[1767491955239,5.85198669,133.99,133.96,3.42260845]
[1767491955442,0.05240803,134.0,133.96,3.42260845]
[1767491955636,5.85198669,133.99,133.96,3.42260845]
[1767491955830,0.05240803,134.0,133.96,3.42260845]
[1767491956030,5.85197276,133.99,133.96,3.42260845]
[1767491956230,0.05240803,134.0,133.96,3.42260845]
[1767491956432,5.85513506,133.99,133.96,3.42260845]
[1767491956631,0.05240803,134.0,133.96,3.42260845]
[1767491956833,5.85468816,133.99,133.96,3.42260845]
[1767491957033,0.05240803,134.0,133.96,3.42260845]
[1767491957330,5.85468816,133.99,133.96,3.42260845]
[1767491957535,0.05240803,134.0,133.96,3.42260845]
[1767491957843,5.85438362,133.99,133.96,3.42260845]
[1767491958139,0.05240803,134.0,133.96,3.42260845]
[1767491960937,5.85506115,133.99,133.96,3.42260845]
[1767491961140,0.05240803,134.0,133.96,3.42260845]
[1767491961344,5.85518381,133.99,133.96,3.42260845]
[1767491961531,0.05240803,134.0,133.96,3.42260845]
[1767491961737,5.85518381,133.99,133.96,3.42260845]
[1767491961936,0.05240803,134.0,133.96,3.42260845]
[1767491962135,5.85518818,133.99,133.96,3.42260845]
[1767491962341,0.05240803,134.0,133.96,3.42260845]
[1767491962545,5.86009242,133.99,133.96,3.42260845]
[1767491962743,0.05240803,134.0,133.96,3.42260845]
[1767491962943,5.86010607,133.99,133.96,3.42260845]
[1767491963146,0.05240803,134.0,133.96,3.42260845]
[1767491963349,5.86016738,133.99,133.96,3.42260845]
[1767491963547,0.05240803,134.0,133.96,3.42260845]
[1767491963848,5.86016738,133.99,133.96,3.42260845]
[1767491964045,0.05240803,134.0,133.96,3.42260845]
[1767491964345,5.86016738,133.99,133.96,3.42260845]
[1767491964647,0.05240803,134.0,133.96,3.42260845]
[1767491964838,5.86016744,133.99,133.96,3.42260845]
[1767491965039,0.05240803,134.0,133.96,3.42260845]
[1767491965340,5.86018109,133.99,133.96,3.42260845]
[1767491965639,0.05240803,134.0,133.96,3.42260845]
[1767491965933,5.85978295,133.99,133.96,3.42260845]
[1767491966136,0.05240803,134.0,133.96,3.42260845]
[1767491966339,5.85978564,133.99,133.96,3.42260845]
[1767491966548,0.05240803,134.0,133.96,3.42260845]
[1767491966848,5.85980813,133.99,133.96,3.42260845]
[1767491967149,0.05240803,134.0,133.96,3.42260845]
[1767491967348,5.85980932,133.99,133.96,3.42260845]
[1767491967550,0.05240803,134.0,133.96,3.42260845]
[1767491967754,5.89070299,133.99,133.96,3.42260845]
[1767491967951,0.05240803,134.0,133.96,3.42260845]
[1767491968152,5.89070299,133.99,133.96,3.42260845]
[1767491968343,0.05240803,134.0,133.96,3.42260845]
[1767491968545,5.89070291,133.99,133.96,3.42260845]
[1767491968854,0.05240803,134.0,133.96,3.42260845]
[1767491969049,5.89255055,133.99,133.96,3.42260845]
[1767491969250,0.05240803,134.0,133.96,3.42260845]
[1767491969447,7.866e-05,133.99,133.96,3.42260845]
[1767491969754,3.65106815,134.0,133.94,3.73911307]
[1767491969952,3.59866012,134.0,133.94,3.73911307]
[1767491970848,3.59866012,134.0,133.96,0.05342925]
[1767491975157,3.44590305,134.03,133.96,3.67307099]
[1767491975560,0.05525639,134.01,133.96,3.67307099]
[1767491976961,0.05525639,134.01,133.97,3.61964174]
[1767491986682,5.88494789,134.0,133.97,3.61964174]
[1767491986982,0.05525639,134.01,133.97,3.61964174]
[1767491987188,5.88499461,134.0,133.97,3.61964174]
[1767491987481,0.05525639,134.01,133.97,3.61964174]
[1767491993278,9.32874877,134.0,133.96,0.05342925]
[1767491993481,5.88284572,133.99,133.96,3.67307099]
[1767491993684,3.50115944,134.01,133.96,3.67307099]
[1767491993984,5.8825296,134.0,133.96,3.67307099]
[1767491994185,5.8825296,133.99,133.96,3.67307099]
[1767491994386,3.50115944,134.01,133.96,3.67307099]
[1767491994589,5.88255046,134.0,133.96,3.67307099]
[1767491994884,5.88255046,133.99,133.96,3.67307099]
[1767491995084,3.50115944,134.01,133.96,3.67307099]
[1767491995288,5.89505906,134.0,133.96,3.67307099]
[1767491995487,5.89505906,133.99,133.96,3.67307099]
[1767491995680,3.50115944,134.01,133.96,3.67307099]
[1767491995881,5.89505906,134.0,133.96,3.67307099]
[1767491996080,5.89505906,133.99,133.96,3.67307099]
[1767491996376,3.50115944,134.01,133.96,3.67307099]
[1767491996581,5.89512012,134.0,133.96,3.67307099]
[1767491996784,5.89512012,133.99,133.96,3.67307099]
[1767491996971,3.50115944,134.01,133.96,3.67307099]
[1767491997170,5.89507615,134.0,133.96,3.67307099]
[1767491997379,5.89507615,133.99,133.96,3.67307099]
[1767491997582,3.50115944,134.01,133.96,3.67307099]
[1767491997783,5.89522133,134.0,133.96,3.67307099]
[1767491997982,5.89522133,133.99,133.96,3.67307099]
[1767491998183,0.05525639,134.01,133.96,3.67307099]
[1767491998381,5.89527928,134.0,133.96,3.67307099]
[1767491998681,5.89527928,133.99,133.96,3.67307099]